[Event "Titled Tuesday Blitz August 22 Late 2023"]
[White "Bullen, Alex"]
[Black "Itkis, Boris"]
[WhiteFideId "1801627"]
[BlackFideId "1209167"]
[WhiteElo "2348"]
[BlackElo "2475"]
[Result "0-1"]
[Round "6"]
[TimeControl "180+1"]
[Date "2023.08.22"]
[WhiteClock "0:00:01"]
[BlackClock "0:01:11"]
[Board "127"]

1. d4 {[%clk 0:03:00]}  d5 {[%clk 0:02:59]} 2. Nf3 {[%clk 0:03:01]}  Nf6 {[%clk 0:02:59]} 3. c4 {[%clk 0:03:01]}  e6 {[%clk 0:02:59]} 4. g3 {[%clk 0:03:01]}  Bb4+ {[%clk 0:02:59]} 5. Bd2 {[%clk 0:03:00]}  a5 {[%clk 0:03:00]} 6. Bg2 {[%clk 0:03:00]}  O-O {[%clk 0:02:59]} 7. O-O {[%clk 0:03:00]}  dxc4 {[%clk 0:02:58]} 8. Qc2 {[%clk 0:02:58]}  Bxd2 {[%clk 0:02:58]} 9. Nbxd2 {[%clk 0:02:58]}  b5 {[%clk 0:02:57]} 10. a4 {[%clk 0:02:58]}  c6 {[%clk 0:02:56]} 11. e3 {[%clk 0:02:43]}  Nd5 {[%clk 0:02:47]} 12. Ne5 {[%clk 0:02:24]}  f6 {[%clk 0:02:41]} 13. Nef3 {[%clk 0:02:09]}  Nd7 {[%clk 0:02:40]} 14. e4 {[%clk 0:01:49]}  Nb4 {[%clk 0:02:39]} 15. Qc3 {[%clk 0:01:46]}  Bb7 {[%clk 0:02:37]} 16. Rfd1 {[%clk 0:01:16]}  Qe7 {[%clk 0:02:37]} 17. b3 {[%clk 0:01:03]}  cxb3 {[%clk 0:02:28]} 18. Qxb3 {[%clk 0:01:04]}  Kh8 {[%clk 0:02:25]} 19. Bh3 {[%clk 0:01:01]}  Rfe8 {[%clk 0:02:20]} 20. Nh4 {[%clk 0:00:53]}  Nb6 {[%clk 0:02:17]} 21. e5 {[%clk 0:00:49]}  f5 {[%clk 0:02:05]} 22. Qf3 {[%clk 0:00:37]}  g6 {[%clk 0:01:56]} 23. Qf4 {[%clk 0:00:32]}  N4d5 {[%clk 0:01:50]} 24. Qh6 {[%clk 0:00:31]}  Qg7 {[%clk 0:01:49]} 25. Qxg7+ {[%clk 0:00:22]}  Kxg7 {[%clk 0:01:49]} 26. axb5 {[%clk 0:00:20]}  cxb5 {[%clk 0:01:50]} 27. Nb3 {[%clk 0:00:18]}  Na4 {[%clk 0:01:46]} 28. Rdc1 {[%clk 0:00:16]}  Rac8 {[%clk 0:01:46]} 29. Bg2 {[%clk 0:00:13]}  Rxc1+ {[%clk 0:01:38]} 30. Rxc1 {[%clk 0:00:14]}  Ra8 {[%clk 0:01:39]} 31. Nc5 {[%clk 0:00:13]}  Nxc5 {[%clk 0:01:38]} 32. Rxc5 {[%clk 0:00:14]}  b4 {[%clk 0:01:37]} 33. Bxd5 {[%clk 0:00:14]}  Bxd5 {[%clk 0:01:36]} 34. Rc7+ {[%clk 0:00:13]}  Kh6 {[%clk 0:01:30]} 35. Ng2 {[%clk 0:00:09]}  a4 {[%clk 0:01:16]} 36. Nf4 {[%clk 0:00:06]}  a3 {[%clk 0:01:14]} 37. Nxd5 {[%clk 0:00:04]}  exd5 {[%clk 0:01:14]} 38. e6 {[%clk 0:00:04]}  a2 {[%clk 0:01:14]} 39. e7 {[%clk 0:00:02]}  a1=Q+ {[%clk 0:01:13]} 40. Kg2 {[%clk 0:00:03]}  Qxd4 {[%clk 0:01:12]} 41. h4 {[%clk 0:00:01]}  Qe4+ {[%clk 0:01:12]} 42. Kh3 {[%clk 0:00:01]}  Qh1# {[%clk 0:01:11]} 0-1


[Site "https://www.chess.com"]

[Event "Titled Tuesday Blitz August 22 Late 2023"]
[White "Seletsky, Grigory"]
[Black "Harish, Neeraj"]
[WhiteFideId "14112191"]
[BlackFideId "30958130"]
[WhiteElo "2472"]
[BlackElo "2345"]
[Result "1-0"]
[Round "6"]
[TimeControl "180+1"]
[Date "2023.08.22"]
[WhiteClock "0:00:57"]
[BlackClock "0:00:26"]
[Board "128"]

1. e4 {[%clk 0:02:57]}  c6 {[%clk 0:02:53]} 2. d3 {[%clk 0:02:56]}  d5 {[%clk 0:02:53]} 3. Nd2 {[%clk 0:02:56]}  e5 {[%clk 0:02:50]} 4. Ngf3 {[%clk 0:02:56]}  Bd6 {[%clk 0:02:49]} 5. g3 {[%clk 0:02:57]}  Nf6 {[%clk 0:02:49]} 6. Bg2 {[%clk 0:02:57]}  O-O {[%clk 0:02:49]} 7. O-O {[%clk 0:02:58]}  Re8 {[%clk 0:02:49]} 8. Re1 {[%clk 0:02:58]}  Bg4 {[%clk 0:02:49]} 9. h3 {[%clk 0:02:57]}  Bh5 {[%clk 0:02:50]} 10. Nf1 {[%clk 0:02:55]}  Nbd7 {[%clk 0:02:48]} 11. g4 {[%clk 0:02:55]}  Bg6 {[%clk 0:02:45]} 12. Ng3 {[%clk 0:02:56]}  Nc5 {[%clk 0:02:39]} 13. Nd2 {[%clk 0:02:48]}  dxe4 {[%clk 0:02:17]} 14. dxe4 {[%clk 0:02:47]}  Ne6 {[%clk 0:02:17]} 15. Ndf1 {[%clk 0:02:44]}  Nf4 {[%clk 0:02:09]} 16. f3 {[%clk 0:02:24]}  Bc5+ {[%clk 0:02:02]} 17. Be3 {[%clk 0:02:24]}  Bxe3+ {[%clk 0:02:01]} 18. Nxe3 {[%clk 0:02:23]}  Qxd1 {[%clk 0:02:01]} 19. Raxd1 {[%clk 0:02:22]}  Rad8 {[%clk 0:02:01]} 20. Bf1 {[%clk 0:02:17]}  Nd7 {[%clk 0:01:58]} 21. Kh2 {[%clk 0:02:11]}  Nb6 {[%clk 0:01:54]} 22. b3 {[%clk 0:02:09]}  f6 {[%clk 0:01:53]} 23. Ngf5 {[%clk 0:02:01]}  Bf7 {[%clk 0:01:47]} 24. Kg3 {[%clk 0:02:01]}  g6 {[%clk 0:01:43]} 25. Nh6+ {[%clk 0:01:59]}  Kg7 {[%clk 0:01:42]} 26. Nxf7 {[%clk 0:01:59]}  Kxf7 {[%clk 0:01:43]} 27. Nc4 {[%clk 0:01:58]}  Nc8 {[%clk 0:01:33]} 28. a4 {[%clk 0:01:56]}  Ke7 {[%clk 0:01:28]} 29. h4 {[%clk 0:01:56]}  Rxd1 {[%clk 0:01:25]} 30. Rxd1 {[%clk 0:01:54]}  Rd8 {[%clk 0:01:26]} 31. Rxd8 {[%clk 0:01:54]}  Kxd8 {[%clk 0:01:27]} 32. g5 {[%clk 0:01:53]}  Ke7 {[%clk 0:01:25]} 33. Bh3 {[%clk 0:01:47]}  Nb6 {[%clk 0:01:14]} 34. Nxb6 {[%clk 0:01:46]}  axb6 {[%clk 0:01:15]} 35. Bc8 {[%clk 0:01:45]}  fxg5 {[%clk 0:01:13]} 36. hxg5 {[%clk 0:01:44]}  Ne2+ {[%clk 0:01:13]} 37. Kf2 {[%clk 0:01:38]}  Nd4 {[%clk 0:01:14]} 38. Bxb7 {[%clk 0:01:36]}  c5 {[%clk 0:01:10]} 39. c3 {[%clk 0:01:23]}  Nxb3 {[%clk 0:01:09]} 40. Bd5 {[%clk 0:01:23]}  Na5 {[%clk 0:00:51]} 41. Ke3 {[%clk 0:01:22]}  Kd6 {[%clk 0:00:47]} 42. f4 {[%clk 0:01:22]}  Nc6 {[%clk 0:00:44]} 43. Bxc6 {[%clk 0:01:00]}  Kxc6 {[%clk 0:00:44]} 44. fxe5 {[%clk 0:01:00]}  Kd7 {[%clk 0:00:31]} 45. Kd3 {[%clk 0:00:58]}  Ke6 {[%clk 0:00:31]} 46. Kc4 {[%clk 0:00:59]}  Kxe5 {[%clk 0:00:32]} 47. Kb5 {[%clk 0:00:59]}  Kxe4 {[%clk 0:00:30]} 48. Kxb6 {[%clk 0:01:00]}  Kf5 {[%clk 0:00:31]} 49. a5 {[%clk 0:00:58]}  Kxg5 {[%clk 0:00:32]} 50. a6 {[%clk 0:00:59]}  h5 {[%clk 0:00:32]} 51. a7 {[%clk 0:00:59]}  Kh4 {[%clk 0:00:32]} 52. a8=Q {[%clk 0:00:59]}  g5 {[%clk 0:00:33]} 53. Qh1+ {[%clk 0:00:57]}  Kg4 {[%clk 0:00:33]} 54. Qg2+ {[%clk 0:00:57]}  Kf4 {[%clk 0:00:30]} 55. Kxc5 {[%clk 0:00:57]}  h4 {[%clk 0:00:29]} 56. Kd4 {[%clk 0:00:57]}  g4 {[%clk 0:00:29]} 57. Qf2+ {[%clk 0:00:56]}  Kg5 {[%clk 0:00:26]} 58. Ke4 {[%clk 0:00:57]} 1-0


[Site "https://www.chess.com"]

[Event "Titled Tuesday Blitz August 22 Late 2023"]
[White "Stanisz, Patryk"]
[Black "Kirillov, Dmitry"]
[WhiteFideId "1123106"]
[BlackFideId "34180572"]
[WhiteElo "2331"]
[BlackElo "2466"]
[Result "0-1"]
[Round "6"]
[TimeControl "180+1"]
[Date "2023.08.22"]
[WhiteClock "0:00:52"]
[BlackClock "0:00:52"]
[Board "131"]

1. d4 {[%clk 0:03:00]}  Nf6 {[%clk 0:02:57]} 2. c4 {[%clk 0:03:01]}  c5 {[%clk 0:02:57]} 3. Nf3 {[%clk 0:03:00]}  cxd4 {[%clk 0:02:56]} 4. Nxd4 {[%clk 0:03:00]}  g6 {[%clk 0:02:56]} 5. Nc3 {[%clk 0:03:00]}  Bg7 {[%clk 0:02:56]} 6. e4 {[%clk 0:02:59]}  O-O {[%clk 0:02:57]} 7. Be2 {[%clk 0:03:00]}  Nc6 {[%clk 0:02:57]} 8. Be3 {[%clk 0:03:00]}  d6 {[%clk 0:02:58]} 9. O-O {[%clk 0:03:01]}  Bd7 {[%clk 0:02:57]} 10. f3 {[%clk 0:02:59]}  a5 {[%clk 0:02:56]} 11. Qd2 {[%clk 0:02:59]}  Nxd4 {[%clk 0:02:55]} 12. Bxd4 {[%clk 0:02:59]}  Bc6 {[%clk 0:02:56]} 13. Rfd1 {[%clk 0:02:59]}  a4 {[%clk 0:02:56]} 14. Rac1 {[%clk 0:02:58]}  Qa5 {[%clk 0:02:56]} 15. Bf1 {[%clk 0:02:50]}  Rfc8 {[%clk 0:02:56]} 16. Qf2 {[%clk 0:02:46]}  h5 {[%clk 0:02:49]} 17. Bb6 {[%clk 0:02:44]}  Qb4 {[%clk 0:02:27]} 18. Rd2 {[%clk 0:02:17]}  Nd7 {[%clk 0:02:16]} 19. Be3 {[%clk 0:02:17]}  Ne5 {[%clk 0:02:13]} 20. Nd1 {[%clk 0:01:55]}  Nd7 {[%clk 0:02:05]} 21. a3 {[%clk 0:01:34]}  Qa5 {[%clk 0:02:04]} 22. Rdc2 {[%clk 0:01:30]}  Nc5 {[%clk 0:02:03]} 23. Nc3 {[%clk 0:01:26]}  Kh7 {[%clk 0:01:46]} 24. Rd1 {[%clk 0:01:25]}  Rd8 {[%clk 0:01:40]} 25. g3 {[%clk 0:01:22]}  Rac8 {[%clk 0:01:39]} 26. Nd5 {[%clk 0:01:17]}  Bxd5 {[%clk 0:01:32]} 27. exd5 {[%clk 0:01:18]}  Qb6 {[%clk 0:01:13]} 28. g4 {[%clk 0:01:10]}  hxg4 {[%clk 0:01:12]} 29. fxg4 {[%clk 0:01:10]}  Kg8 {[%clk 0:01:12]} 30. h4 {[%clk 0:01:09]}  Qb3 {[%clk 0:01:10]} 31. Be2 {[%clk 0:00:59]}  Qxc2 {[%clk 0:01:07]} 32. Rf1 {[%clk 0:00:59]}  Rf8 {[%clk 0:01:04]} 33. h5 {[%clk 0:00:58]}  Ne4 {[%clk 0:00:59]} 34. Qf4 {[%clk 0:00:57]}  Qxe2 {[%clk 0:00:54]} 35. Qxe4 {[%clk 0:00:57]}  Rxc4 {[%clk 0:00:52]} 36. Qxe7 {[%clk 0:00:52]}  Rxg4+ {[%clk 0:00:52]} 0-1


[Site "https://www.chess.com"]

[Event "Titled Tuesday Blitz August 22 Late 2023"]
[White "Mindhunter08"]
[Black "Zampronha, Wladimir Camilo"]
[BlackFideId "2103087"]
[WhiteElo "2464"]
[BlackElo "2312"]
[Result "1-0"]
[Round "6"]
[TimeControl "180+1"]
[Date "2023.08.22"]
[WhiteClock "0:01:04"]
[BlackClock "0:00:34"]
[Board "132"]

1. e4 {[%clk 0:03:00]}  c5 {[%clk 0:02:58]} 2. Nf3 {[%clk 0:02:59]}  e6 {[%clk 0:02:59]} 3. g3 {[%clk 0:02:59]}  d5 {[%clk 0:02:57]} 4. exd5 {[%clk 0:03:00]}  exd5 {[%clk 0:02:57]} 5. d4 {[%clk 0:02:59]}  Nc6 {[%clk 0:02:58]} 6. Bg2 {[%clk 0:02:59]}  Bg4 {[%clk 0:02:58]} 7. dxc5 {[%clk 0:02:50]}  Bxc5 {[%clk 0:02:57]} 8. O-O {[%clk 0:02:49]}  Nge7 {[%clk 0:02:57]} 9. h3 {[%clk 0:02:49]}  Bh5 {[%clk 0:02:56]} 10. g4 {[%clk 0:02:49]}  Bg6 {[%clk 0:02:56]} 11. Nc3 {[%clk 0:02:50]}  O-O {[%clk 0:02:55]} 12. Bf4 {[%clk 0:02:50]}  Rc8 {[%clk 0:02:43]} 13. Na4 {[%clk 0:02:31]}  Bd6 {[%clk 0:02:38]} 14. Bg5 {[%clk 0:02:14]}  Bb8 {[%clk 0:02:31]} 15. Re1 {[%clk 0:02:05]}  f6 {[%clk 0:02:30]} 16. Be3 {[%clk 0:02:01]}  Be4 {[%clk 0:02:21]} 17. c3 {[%clk 0:01:54]}  Qc7 {[%clk 0:02:20]} 18. Nc5 {[%clk 0:01:52]}  Nd8 {[%clk 0:02:08]} 19. Nxe4 {[%clk 0:01:43]}  dxe4 {[%clk 0:02:08]} 20. Nd4 {[%clk 0:01:43]}  f5 {[%clk 0:01:48]} 21. Qb3+ {[%clk 0:01:38]}  Kh8 {[%clk 0:01:47]} 22. gxf5 {[%clk 0:01:38]}  Nxf5 {[%clk 0:01:45]} 23. Nxf5 {[%clk 0:01:23]}  Rxf5 {[%clk 0:01:44]} 24. Rad1 {[%clk 0:01:24]}  Nf7 {[%clk 0:01:35]} 25. Qe6 {[%clk 0:01:22]}  Rf3 {[%clk 0:01:02]} 26. Bxf3 {[%clk 0:01:08]}  exf3 {[%clk 0:00:52]} 27. Bf4 {[%clk 0:01:08]}  Ng5 {[%clk 0:00:34]} 28. Qe8+ {[%clk 0:01:04]} 1-0


[Site "https://www.chess.com"]

[Event "Titled Tuesday Blitz August 22 Late 2023"]
[White "Chemin, Justo Reinaldo"]
[Black "KrokerGuy"]
[WhiteFideId "2101580"]
[WhiteElo "2283"]
[BlackElo "2458"]
[Result "1-0"]
[Round "6"]
[TimeControl "180+1"]
[Date "2023.08.22"]
[WhiteClock "0:00:07"]
[BlackClock "0:00:10"]
[Board "133"]

1. d4 {[%clk 0:03:00]}  d5 {[%clk 0:03:00]} 2. Bf4 {[%clk 0:02:59]}  Nf6 {[%clk 0:03:00]} 3. e3 {[%clk 0:02:59]}  c5 {[%clk 0:03:00]} 4. c3 {[%clk 0:02:58]}  Nc6 {[%clk 0:03:01]} 5. Nd2 {[%clk 0:02:58]}  e6 {[%clk 0:02:54]} 6. Bd3 {[%clk 0:02:57]}  Bd6 {[%clk 0:02:54]} 7. Bg3 {[%clk 0:02:56]}  Bxg3 {[%clk 0:02:54]} 8. hxg3 {[%clk 0:02:56]}  Qd6 {[%clk 0:02:55]} 9. f4 {[%clk 0:02:49]}  h5 {[%clk 0:02:25]} 10. Ngf3 {[%clk 0:02:46]}  Ng4 {[%clk 0:02:25]} 11. Qe2 {[%clk 0:02:45]}  Bd7 {[%clk 0:02:18]} 12. Ne5 {[%clk 0:02:43]}  Nf6 {[%clk 0:02:04]} 13. g4 {[%clk 0:02:32]}  g6 {[%clk 0:01:56]} 14. g5 {[%clk 0:02:19]}  Ng8 {[%clk 0:01:07]} 15. O-O-O {[%clk 0:02:09]}  Nxe5 {[%clk 0:00:51]} 16. dxe5 {[%clk 0:01:50]}  Qb6 {[%clk 0:00:46]} 17. e4 {[%clk 0:01:47]}  Ne7 {[%clk 0:00:44]} 18. exd5 {[%clk 0:01:42]}  exd5 {[%clk 0:00:45]} 19. Rhe1 {[%clk 0:01:23]}  O-O-O {[%clk 0:00:39]} 20. c4 {[%clk 0:01:13]}  Kb8 {[%clk 0:00:26]} 21. Nf3 {[%clk 0:01:10]}  d4 {[%clk 0:00:16]} 22. Nd2 {[%clk 0:01:00]}  Bg4 {[%clk 0:00:15]} 23. Nf3 {[%clk 0:00:55]}  Bf5 {[%clk 0:00:15]} 24. Rd2 {[%clk 0:00:43]}  Bxd3 {[%clk 0:00:15]} 25. Qxd3 {[%clk 0:00:43]}  Nf5 {[%clk 0:00:16]} 26. Qb3 {[%clk 0:00:28]}  Qxb3 {[%clk 0:00:09]} 27. axb3 {[%clk 0:00:27]}  Ne3 {[%clk 0:00:09]} 28. Rde2 {[%clk 0:00:18]}  Kc7 {[%clk 0:00:09]} 29. Nd2 {[%clk 0:00:18]}  Kc6 {[%clk 0:00:06]} 30. Ne4 {[%clk 0:00:18]}  b6 {[%clk 0:00:03]} 31. Nd6 {[%clk 0:00:17]}  Rd7 {[%clk 0:00:04]} 32. Ne4 {[%clk 0:00:16]}  a6 {[%clk 0:00:04]} 33. Nf6 {[%clk 0:00:16]}  Rdd8 {[%clk 0:00:03]} 34. Rxe3 {[%clk 0:00:16]}  dxe3 {[%clk 0:00:03]} 35. Rxe3 {[%clk 0:00:17]}  Rd4 {[%clk 0:00:04]} 36. g3 {[%clk 0:00:16]}  h4 {[%clk 0:00:04]} 37. e6 {[%clk 0:00:10]}  fxe6 {[%clk 0:00:03]} 38. Rxe6+ {[%clk 0:00:10]}  Kb7 {[%clk 0:00:03]} 39. Re7+ {[%clk 0:00:10]}  Kc8 {[%clk 0:00:03]} 40. gxh4 {[%clk 0:00:07]}  Rxh4 {[%clk 0:00:01]} 41. Nd5 {[%clk 0:00:08]}  Rxd5 {[%clk 0:00:01]} 42. cxd5 {[%clk 0:00:07]}  Rxf4 {[%clk 0:00:02]} 43. d6 {[%clk 0:00:07]}  Rd4 {[%clk 0:00:02]} 44. Re6 {[%clk 0:00:01]}  Kd7 {[%clk 0:00:03]} 45. Rxg6 {[%clk 0:00:01]}  Rxd6 {[%clk 0:00:04]} 46. Rxd6+ {[%clk 0:00:01]}  Kxd6 {[%clk 0:00:05]} 47. Kd2 {[%clk 0:00:01]}  Ke6 {[%clk 0:00:05]} 48. Kd3 {[%clk 0:00:02]}  Ke5 {[%clk 0:00:01]} 49. Kc4 {[%clk 0:00:03]}  Ke6 {[%clk 0:00:01]} 50. b4 {[%clk 0:00:04]}  cxb4 {[%clk 0:00:01]} 51. Kxb4 {[%clk 0:00:04]}  Kf5 {[%clk 0:00:02]} 52. Kc4 {[%clk 0:00:04]}  Ke5 {[%clk 0:00:02]} 53. g6 {[%clk 0:00:04]}  Kf6 {[%clk 0:00:02]} 54. Kd5 {[%clk 0:00:04]}  Kxg6 {[%clk 0:00:02]} 55. Kc6 {[%clk 0:00:05]}  b5 {[%clk 0:00:02]} 56. Kb6 {[%clk 0:00:05]}  b4 {[%clk 0:00:02]} 57. Kxa6 {[%clk 0:00:05]}  b3 {[%clk 0:00:03]} 58. Kb5 {[%clk 0:00:05]}  Kf5 {[%clk 0:00:04]} 59. Kb4 {[%clk 0:00:06]}  Ke5 {[%clk 0:00:05]} 60. Kxb3 {[%clk 0:00:07]}  Kd5 {[%clk 0:00:06]} 61. Kb4 {[%clk 0:00:07]}  Kc6 {[%clk 0:00:07]} 62. Kc4 {[%clk 0:00:06]}  Kb6 {[%clk 0:00:05]} 63. Kb4 {[%clk 0:00:06]}  Kc6 {[%clk 0:00:05]} 64. Ka5 {[%clk 0:00:06]}  Kc7 {[%clk 0:00:04]} 65. Kb5 {[%clk 0:00:06]}  Kb7 {[%clk 0:00:04]} 66. b3 {[%clk 0:00:06]}  Kc7 {[%clk 0:00:05]} 67. Ka6 {[%clk 0:00:06]}  Kc6 {[%clk 0:00:05]} 68. b4 {[%clk 0:00:07]}  Kc7 {[%clk 0:00:06]} 69. b5 {[%clk 0:00:07]}  Kc8 {[%clk 0:00:06]} 70. Kb6 {[%clk 0:00:06]}  Kb8 {[%clk 0:00:07]} 71. Kc6 {[%clk 0:00:06]}  Kc8 {[%clk 0:00:08]} 72. Kb6 {[%clk 0:00:06]}  Kb8 {[%clk 0:00:08]} 73. Kc6 {[%clk 0:00:05]}  Kc8 {[%clk 0:00:09]} 74. b6 {[%clk 0:00:06]}  Kb8 {[%clk 0:00:09]} 75. b7 {[%clk 0:00:06]}  Ka7 {[%clk 0:00:10]} 76. Kc7 {[%clk 0:00:06]}  Ka6 {[%clk 0:00:10]} 77. b8=Q {[%clk 0:00:07]} 1-0


[Site "https://www.chess.com"]

[Event "Titled Tuesday Blitz August 22 Late 2023"]
[White "Eggleston, Thomas A"]
[Black "Fajdetic, Hrvoje"]
[WhiteFideId "412139"]
[BlackFideId "14501945"]
[WhiteElo "2451"]
[BlackElo "2266"]
[Result "1/2-1/2"]
[Round "6"]
[TimeControl "180+1"]
[Date "2023.08.22"]
[WhiteClock "0:00:06"]
[BlackClock "0:00:05"]
[Board "136"]

1. d4 {[%clk 0:03:00]}  e6 {[%clk 0:02:56]} 2. c4 {[%clk 0:03:00]}  f5 {[%clk 0:02:56]} 3. Nf3 {[%clk 0:02:54]}  Nf6 {[%clk 0:02:56]} 4. g3 {[%clk 0:02:54]}  d5 {[%clk 0:02:56]} 5. Bg2 {[%clk 0:02:52]}  c6 {[%clk 0:02:56]} 6. O-O {[%clk 0:02:49]}  Bd6 {[%clk 0:02:56]} 7. Nbd2 {[%clk 0:02:43]}  O-O {[%clk 0:02:56]} 8. Ne5 {[%clk 0:02:43]}  b6 {[%clk 0:02:53]} 9. Ndf3 {[%clk 0:02:40]}  Bb7 {[%clk 0:02:53]} 10. Qc2 {[%clk 0:02:37]}  Nbd7 {[%clk 0:02:50]} 11. Bf4 {[%clk 0:02:33]}  Qe7 {[%clk 0:02:47]} 12. Nd3 {[%clk 0:02:24]}  Ne4 {[%clk 0:02:45]} 13. Nfe5 {[%clk 0:02:21]}  Rac8 {[%clk 0:02:39]} 14. f3 {[%clk 0:02:17]}  Nef6 {[%clk 0:02:23]} 15. Nxd7 {[%clk 0:02:17]}  Qxd7 {[%clk 0:02:20]} 16. Ne5 {[%clk 0:02:17]}  Qc7 {[%clk 0:02:10]} 17. e4 {[%clk 0:02:15]}  Nd7 {[%clk 0:02:06]} 18. exf5 {[%clk 0:01:53]}  Rxf5 {[%clk 0:01:57]} 19. Bh3 {[%clk 0:01:49]}  Rf6 {[%clk 0:01:43]} 20. Bg5 {[%clk 0:01:49]}  Bxe5 {[%clk 0:01:34]} 21. dxe5 {[%clk 0:01:42]}  Qxe5 {[%clk 0:01:35]} 22. Bxf6 {[%clk 0:01:38]}  Qxf6 {[%clk 0:01:30]} 23. Rae1 {[%clk 0:01:36]}  Nf8 {[%clk 0:01:24]} 24. f4 {[%clk 0:01:32]}  Qd4+ {[%clk 0:01:01]} 25. Kh1 {[%clk 0:01:32]}  dxc4 {[%clk 0:01:01]} 26. Bg2 {[%clk 0:01:31]}  b5 {[%clk 0:00:55]} 27. Rd1 {[%clk 0:01:30]}  Qc5 {[%clk 0:00:45]} 28. Rfe1 {[%clk 0:01:17]}  a5 {[%clk 0:00:44]} 29. Re5 {[%clk 0:01:10]}  Qb6 {[%clk 0:00:35]} 30. f5 {[%clk 0:01:04]}  c5 {[%clk 0:00:18]} 31. Bxb7 {[%clk 0:01:00]}  Qxb7+ {[%clk 0:00:19]} 32. Kg1 {[%clk 0:01:00]}  exf5 {[%clk 0:00:17]} 33. Qxf5 {[%clk 0:00:56]}  Qc7 {[%clk 0:00:14]} 34. Qe4 {[%clk 0:00:33]}  Qf7 {[%clk 0:00:11]} 35. Qd5 {[%clk 0:00:30]}  b4 {[%clk 0:00:07]} 36. Rf5 {[%clk 0:00:24]}  Qxd5 {[%clk 0:00:06]} 37. Rdxd5 {[%clk 0:00:24]}  Ne6 {[%clk 0:00:06]} 38. Rfe5 {[%clk 0:00:20]}  Nd4 {[%clk 0:00:03]} 39. Re7 {[%clk 0:00:18]}  c3 {[%clk 0:00:01]} 40. bxc3 {[%clk 0:00:16]}  bxc3 {[%clk 0:00:02]} 41. Rdd7 {[%clk 0:00:16]}  c2 {[%clk 0:00:02]} 42. Rxg7+ {[%clk 0:00:16]}  Kh8 {[%clk 0:00:02]} 43. Rxh7+ {[%clk 0:00:16]}  Kg8 {[%clk 0:00:03]} 44. Rhg7+ {[%clk 0:00:14]}  Kf8 {[%clk 0:00:03]} 45. Rgf7+ {[%clk 0:00:13]}  Ke8 {[%clk 0:00:04]} 46. Rfe7+ {[%clk 0:00:11]}  Kf8 {[%clk 0:00:04]} 47. Rf7+ {[%clk 0:00:07]}  Kg8 {[%clk 0:00:04]} 48. Rg7+ {[%clk 0:00:07]}  Kh8 {[%clk 0:00:04]} 49. Rh7+ {[%clk 0:00:08]}  Kg8 {[%clk 0:00:05]} 50. Rhg7+ {[%clk 0:00:06]} 1/2-1/2


[Site "https://www.chess.com"]

[Event "Titled Tuesday Blitz August 22 Late 2023"]
[White "Nunez V, Gustavo Eduardo"]
[Black "Petersson, Kjell"]
[WhiteFideId "4403690"]
[BlackFideId "1705148"]
[WhiteElo "2439"]
[BlackElo "2179"]
[Result "1-0"]
[Round "6"]
[TimeControl "180+1"]
[Date "2023.08.22"]
[WhiteClock "0:00:26"]
[BlackClock "0:00:12"]
[Board "141"]

1. e4 {[%clk 0:03:00]}  c5 {[%clk 0:02:59]} 2. Nc3 {[%clk 0:03:01]}  g6 {[%clk 0:02:55]} 3. g3 {[%clk 0:03:01]}  Nf6 {[%clk 0:02:54]} 4. Bg2 {[%clk 0:03:02]}  Nc6 {[%clk 0:02:53]} 5. Nge2 {[%clk 0:03:02]}  Bg7 {[%clk 0:02:53]} 6. d3 {[%clk 0:03:02]}  O-O {[%clk 0:02:51]} 7. h3 {[%clk 0:03:02]}  Rb8 {[%clk 0:02:50]} 8. a4 {[%clk 0:03:01]}  d6 {[%clk 0:02:41]} 9. O-O {[%clk 0:03:01]}  a6 {[%clk 0:02:39]} 10. f4 {[%clk 0:02:56]}  Nd4 {[%clk 0:02:27]} 11. g4 {[%clk 0:02:49]}  b5 {[%clk 0:02:25]} 12. axb5 {[%clk 0:02:50]}  axb5 {[%clk 0:02:25]} 13. Ng3 {[%clk 0:02:51]}  b4 {[%clk 0:02:23]} 14. Nce2 {[%clk 0:02:51]}  Nxg4 {[%clk 0:02:17]} 15. hxg4 {[%clk 0:02:42]}  Bxg4 {[%clk 0:02:18]} 16. Qd2 {[%clk 0:02:32]}  Qd7 {[%clk 0:02:07]} 17. Nxd4 {[%clk 0:02:19]}  Bxd4+ {[%clk 0:02:06]} 18. Kh2 {[%clk 0:02:20]}  h5 {[%clk 0:02:04]} 19. Qe1 {[%clk 0:02:00]}  Kg7 {[%clk 0:01:59]} 20. Ne2 {[%clk 0:01:37]}  Bf6 {[%clk 0:01:47]} 21. Ng1 {[%clk 0:01:01]}  e5 {[%clk 0:01:26]} 22. f5 {[%clk 0:00:41]}  gxf5 {[%clk 0:01:19]} 23. exf5 {[%clk 0:00:42]}  Bxf5 {[%clk 0:01:17]} 24. Qf2 {[%clk 0:00:42]}  Kg6 {[%clk 0:01:08]} 25. Bh3 {[%clk 0:00:34]}  Bxh3 {[%clk 0:00:39]} 26. Qxf6+ {[%clk 0:00:33]}  Kh7 {[%clk 0:00:39]} 27. Nxh3 {[%clk 0:00:32]}  Rh8 {[%clk 0:00:16]} 28. Qh6+ {[%clk 0:00:27]}  Kg8 {[%clk 0:00:12]} 29. Rg1+ {[%clk 0:00:26]} 1-0


[Site "https://www.chess.com"]